[Event "72nd RUS-ch Higher League 2019"]
[Site "Yaroslavl"]
[Date "2019.07.04"]
[Round "7.10"]
[White "Popov, Ivan"]
[Black "Khismatullin, Denis"]
[Result "0-1"]
[ECO "B53"]
[WhiteElo "2599"]
[BlackElo "2618"]
[Annotator "ChessBase"]
[PlyCount "96"]
[EventDate "2019.06.27"]
[EventType "swiss"]
[EventCountry "RUS"]
[SourceTitle "playchess.com"]
[Source "ChessBase"]
[SourceQuality "1"]
[TimeControl "40/5400+30:1800+30"]

1. e4 {[%emt 0:00:00]} c5 {[%emt 0:00:00]} 2. Nf3 {[%emt 0:00:09]} d6 {[%emt 0:00:40]} 3. d4 {[%emt 0:00:10]} cxd4 {[%emt 0:00:06]} 4. Qxd4 {[%emt 0:00:11]} a6 {[%emt 0:11:15]} 5. Be2 {[%emt 0:01:58]} Nc6 {[%emt 0:00:43]} 6. Qe3 {[%emt 0:00:12]} Nf6 {[%emt 0:00:10]} 7. O-O {[%emt 0:03:50]} Bg4 {[%emt 0:06:48]} 8. c4 {[%emt 0:05:34]} e6 {[%emt 0:00:52]} 9. Nc3 {[%emt 0:01:03]} Be7 {[%emt 0:00:08]} 10. b3 {[%emt 0:01:35]} O-O {[%emt 0:00:11]} 11. Bb2 {[%emt 0:00:08]} Qa5 {[%emt 0:03:33]} 12. Rfd1 {[%emt 0:07:17]} Rfd8 {[%emt 0:02:52]} 13. Nd4 {[%emt 0:14:47]} Bxe2 {[%emt 0:03:46]} 14. Nxc6 {[%emt 0:02:42]} bxc6 {[%emt 0:00:08]} 15. Qxe2 {[%emt 0:01:01]} Nd7 {[%emt 0:07:43]} 16. Rd2 {[%emt 0:04:37]} Nc5 {[%emt 0:01:11]} 17. Rad1 {[%emt 0:00:40]} Bf6 {[%emt 0:10:52]} 18. Qe3 {[%emt 0:04:32]} Qc7 {[%emt 0:14:01]} 19. f4 {[%emt 0:18:31]} e5 {[%emt 0:04:49]} 20. f5 {[%emt 0:00:31]} h6 {[%emt 0:00:25]} 21. Qf2 {[%emt 0:01:14]} Bg5 {[%emt 0:01:32]} 22. Re2 {[%emt 0:07:08]} Rab8 {[%emt 0:01:34]} 23. h4 {[%emt 0:01:33]} Be7 {[%emt 0:03:12]} 24. g3 {[%emt 0:06:04]} a5 {[%emt 0:01:55]} 25. Ba3 {[%emt 0:00:26]} Nxb3 {[%emt 0:02:03]} 26. axb3 {[%emt 0:00:55]} Rxb3 {[%emt 0:00:06]} 27. Bb2 {[%emt 0:02:52]} Qb7 28. Ra1 {[%emt 0:04:01]} Rb8 {[%emt 0:07:30]} 29. Na4 {[%emt 0:04:25]} Qa6 30. c5 {[%emt 0:00:30]} Rxg3+ {[%emt 0:13:45]} 31. Qxg3 {[%emt 0:00:05]} Qxe2 {[%emt 0:00:03]} 32. cxd6 {[%emt 0:00:37]} Bxd6 {[%emt 0:00:13]} 33. f6 {[%emt 0:00:21]} g6 34. Bxe5 {[%emt 0:03:45]} Bxe5 {[%emt 0:02:47]} 35. Qxe5 {[%emt 0:00:01]} Qg4+ {[%emt 0:00:35]} 36. Kf1 {[%emt 0:01:09]} Qh3+ {[%emt 0:00:38]} 37. Kg1 {[%emt 0:00:18]} Qg4+ {[%emt 0:00:26]} 38. Kf1 {[%emt 0:00:01]} Rd8 {[%emt 0:00:21]} 39. Nc5 {[%emt 0:02:59]} Qh3+ {[%emt 0:01:21]} 40. Kg1 {[%emt 0:00:00]} Qg4+ {[%emt 0:00:00]} 41. Kf1 {[%emt 0:01:34]} Qxh4 {[%emt 0:04:42]} 42. Kg1 {[%emt 0:07:22]} Qg4+ {[%emt 0:04:14]} 43. Kf1 {[%emt 0:04:31]} h5 {[%emt 0:10:20]} 44. Qe7 {[%emt 0:01:14]} Rd2 {[%emt 0:09:57]} 45. Qe8+ {[%emt 0:06:34]} Kh7 {[%emt 0:00:19]} 46. Qxf7+ {[%emt 0:00:04]} Kh6 {[%emt 0:00:05]} 47. Qf8+ {[%emt 0:00:37]} Kg5 {[%emt 0:00:06]} 48. Ne6+ {[%emt 0:00:05]} Kh4 {[%emt 0:00:17]} 0-1

[Event "72nd RUS-ch Higher League 2019"]
[Site "Yaroslavl"]
[Date "2019.07.04"]
[Round "7.11"]
[White "Frolyanov, Dmitry"]
[Black "Kobalia, Mikhail"]
[Result "1/2-1/2"]
[ECO "B14"]
[WhiteElo "2538"]
[BlackElo "2608"]
[Annotator "ChessBase"]
[PlyCount "31"]
[EventDate "2019.06.27"]
[EventType "swiss"]
[EventCountry "RUS"]
[SourceTitle "playchess.com"]
[Source "ChessBase"]
[SourceQuality "1"]
[TimeControl "40/5400+30:1800+30"]

1. e4 {[%emt 0:00:00]} c6 {[%emt 0:00:12]} 2. d4 {[%emt 0:00:00]} d5 {[%emt 0:00:06]} 3. exd5 {[%emt 0:00:07]} cxd5 {[%emt 0:00:05]} 4. c4 {[%emt 0:00:13]} Nf6 {[%emt 0:00:07]} 5. Nc3 {[%emt 0:00:11]} g6 {[%emt 0:00:11]} 6. cxd5 {[%emt 0:01:23]} Nxd5 {[%emt 0:00:49]} 7. Bc4 {[%emt 0:00:04]} Nxc3 {[%emt 0:06:12]} 8. Qb3 {[%emt 0:01:39]} e6 {[%emt 0:01:04]} 9. bxc3 {[%emt 0:00:17]} Nc6 {[%emt 0:07:34]} 10. Nf3 {[%emt 0:03:23]} Bg7 {[%emt 0:03:32]} 11. Ba3 {[%emt 0:01:04]} Bf8 {[%emt 0:00:45]} 12. Bc1 {[%emt 0:01:47]} Bg7 {[%emt 0:01:00]} 13. Ba3 {[%emt 0:00:05]} Bf8 {[%emt 0:01:44]} 14. Bc1 {[%emt 0:23:22]} Bg7 {[%emt 0:00:45]} 15. Ba3 {[%emt 0:00:27]} Bf8 {[%emt 0:00:11]} 16. Bc1 1/2-1/2

[Event "72nd RUS-ch Higher League 2019"]
[Site "Yaroslavl"]
[Date "2019.07.04"]
[Round "7.14"]
[White "Drygalov, Andrey"]
[Black "Petrov, Nikita"]
[Result "1/2-1/2"]
[ECO "B31"]
[WhiteElo "2494"]
[BlackElo "2610"]
[Annotator "ChessBase"]
[PlyCount "66"]
[EventDate "2019.06.27"]
[EventType "swiss"]
[EventCountry "RUS"]
[SourceTitle "playchess.com"]
[Source "ChessBase"]
[SourceQuality "1"]
[TimeControl "40/5400+30:1800+30"]

1. e4 {[%emt 0:00:00]} c5 {[%emt 0:00:00]} 2. Nf3 {[%emt 0:00:00]} Nc6 {[%emt 0:00:00]} 3. Bb5 {[%emt 0:00:00]} g6 {[%emt 0:00:34]} 4. Bxc6 {[%emt 0:00:05]} bxc6 {[%emt 0:00:13]} 5. O-O {[%emt 0:00:07]} Bg7 {[%emt 0:00:21]} 6. Re1 {[%emt 0:00:16]} Nh6 {[%emt 0:01:10]} 7. c3 {[%emt 0:00:21]} O-O {[%emt 0:00:34]} 8. h3 {[%emt 0:00:14]} f5 {[%emt 0:01:06]} 9. e5 {[%emt 0:00:05]} Nf7 {[%emt 0:00:38]} 10. d3 {[%emt 0:00:17]} Rb8 {[%emt 0:04:18]} 11. b3 {[%emt 0:10:52]} h6 {[%emt 0:06:05]} 12. d4 {[%emt 0:06:36]} cxd4 {[%emt 0:12:16]} 13. cxd4 {[%emt 0:05:17]} c5 {[%emt 0:10:08]} 14. Bb2 {[%emt 0:08:51]} Bb7 {[%emt 0:18:49]} 15. Nbd2 {[%emt 0:04:09]} g5 {[%emt 0:10:29]} 16. dxc5 {[%emt 0:04:06]} e6 {[%emt 0:00:26]} 17. Nd4 {[%emt 0:02:01]} Qc7 {[%emt 0:04:16]} 18. c6 {[%emt 0:05:40]} Bxc6 {[%emt 0:00:29]} 19. Nxc6 {[%emt 0:00:16]} Qxc6 {[%emt 0:04:18]} 20. Nc4 {[%emt 0:00:12]} Rfd8 {[%emt 0:10:33]} 21. Qe2 {[%emt 0:04:00]} Qa6 {[%emt 0:00:46]} 22. Qe3 {[%emt 0:05:34]} Rb5 {[%emt 0:02:21]} 23. Red1 {[%emt 0:03:37]} Rd5 {[%emt 0:02:45]} 24. Rd2 {[%emt 0:16:43]} Rb8 {[%emt 0:00:41]} 25. Qe1 {[%emt 0:07:45]} Rbb5 {[%emt 0:01:13]} 26. Re2 {[%emt 0:04:06]} Rd3 {[%emt 0:01:57]} 27. Rd2 {[%emt 0:01:40]} Rxd2 {[%emt 0:00:51]} 28. Qxd2 {[%emt 0:00:12]} Rd5 {[%emt 0:00:22]} 29. Qb4 {[%emt 0:01:12]} Bf8 {[%emt 0:02:21]} 30. Qe1 {[%emt 0:00:54]} Bg7 {[%emt 0:00:58]} 31. Qb4 {[%emt 0:00:31]} Bf8 {[%emt 0:00:03]} 32. Qe1 {[%emt 0:00:05]} Bg7 {[%emt 0:00:09]} 33. Qb4 {[%emt 0:00:12]} Bf8 {[%emt 0:00:04]} 1/2-1/2

[Event "72nd RUS-ch Higher League 2019"]
[Site "Yaroslavl"]
[Date "2019.07.04"]
[Round "7.15"]
[White "Timofeev, Artyom"]
[Black "Airapetian, Gor"]
[Result "1/2-1/2"]
[ECO "C07"]
[WhiteElo "2608"]
[BlackElo "2442"]
[Annotator "ChessBase"]
[PlyCount "144"]
[EventDate "2019.06.27"]
[EventType "swiss"]
[EventCountry "RUS"]
[SourceTitle "playchess.com"]
[Source "ChessBase"]
[SourceQuality "1"]
[TimeControl "40/5400+30:1800+30"]

1. e4 {[%emt 0:00:00]} e6 {[%emt 0:00:02]} 2. d4 {[%emt 0:00:00]} d5 {[%emt 0:00:07]} 3. Nd2 {[%emt 0:00:10]} c5 {[%emt 0:00:23]} 4. exd5 {[%emt 0:01:24]} Qxd5 {[%emt 0:00:14]} 5. Ngf3 {[%emt 0:00:17]} cxd4 {[%emt 0:00:26]} 6. Bc4 {[%emt 0:00:36]} Qd8 {[%emt 0:03:09]} 7. O-O {[%emt 0:01:39]} Nc6 {[%emt 0:00:17]} 8. Nb3 {[%emt 0:04:05]} a6 {[%emt 0:00:12]} 9. Nbxd4 {[%emt 0:07:34]} Nxd4 {[%emt 0:00:14]} 10. Nxd4 {[%emt 0:00:06]} Bd6 {[%emt 0:00:05]} 11. Bd3 {[%emt 0:03:10]} Nf6 {[%emt 0:16:28]} 12. Bg5 {[%emt 0:05:41]} Qc7 {[%emt 0:07:42]} 13. g3 {[%emt 0:08:12]} Bd7 {[%emt 0:08:22]} 14. Re1 {[%emt 0:02:35]} O-O-O {[%emt 0:14:56]} 15. Qf3 {[%emt 0:08:07]} Be5 {[%emt 0:05:49]} 16. Qe3 {[%emt 0:00:59]} Bd6 {[%emt 0:19:36]} 17. c4 {[%emt 0:04:05]} Kb8 {[%emt 0:02:23]} 18. b4 {[%emt 0:05:13]} h6 {[%emt 0:00:28]} 19. Bxf6 {[%emt 0:02:04]} gxf6 {[%emt 0:00:44]} 20. Rab1 {[%emt 0:00:00]} Be5 {[%emt 0:05:54]} 21. Nf3 {[%emt 0:02:05]} Bc6 {[%emt 0:00:37]} 22. Be4 {[%emt 0:02:19]} Bxe4 {[%emt 0:02:00]} 23. Qxe4 {[%emt 0:00:08]} Bc3 {[%emt 0:01:56]} 24. Rec1 {[%emt 0:01:15]} f5 {[%emt 0:00:02]} 25. Qe2 {[%emt 0:00:47]} Bf6 {[%emt 0:00:28]} 26. b5 {[%emt 0:12:28]} a5 {[%emt 0:01:11]} 27. b6 {[%emt 0:01:05]} Qc5 {[%emt 0:01:31]} 28. Qe1 {[%emt 0:02:13]} Rd6 {[%emt 0:02:42]} 29. Rb5 {[%emt 0:00:56]} Qa3 {[%emt 0:00:21]} 30. Kg2 {[%emt 0:00:28]} Rhd8 {[%emt 0:03:41]} 31. Rxa5 {[%emt 0:05:14]} Qd3 {[%emt 0:00:06]} 32. Ra7 {[%emt 0:16:12]} Qe4 {[%emt 0:01:56]} 33. Qa5 {[%emt 0:01:04]} Kc8 {[%emt 0:00:01]} 34. Qb5 {[%emt 0:01:42]} Kb8 {[%emt 0:02:16]} 35. Qa5 {[%emt 0:01:42]} Kc8 {[%emt 0:00:04]} 36. Qb5 {[%emt 0:01:35]} Kb8 {[%emt 0:00:54]} 37. Re1 {[%emt 0:00:36]} Qc6 {[%emt 0:00:25]} 38. Qa5 {[%emt 0:00:24]} Qxb6 {[%emt 0:00:31]} 39. Ra8+ {[%emt 0:00:19]} Kc7 {[%emt 0:00:01]} 40. c5 {[%emt 0:00:00]} Qxa5 {[%emt 0:00:00]} 41. cxd6+ {[%emt 0:01:20]} Kb6 {[%emt 0:01:11]} 42. Rb1+ {[%emt 0:01:21]} Qb5 {[%emt 0:00:06]} 43. Rxb5+ {[%emt 0:00:12]} Kxb5 {[%emt 0:00:01]} 44. Rxd8 {[%emt 0:00:19]} Bxd8 {[%emt 0:00:02]} 45. Ne5 {[%emt 0:01:54]} Bf6 {[%emt 0:00:37]} 46. Nxf7 {[%emt 0:08:00]} Kc6 {[%emt 0:00:12]} 47. g4 {[%emt 0:00:24]} fxg4 {[%emt 0:05:55]} 48. Nxh6 {[%emt 0:00:20]} Kxd6 {[%emt 0:00:07]} 49. Nxg4 {[%emt 0:00:05]} Bh8 {[%emt 0:00:18]} 50. h4 {[%emt 0:02:40]} Kc5 {[%emt 0:01:41]} 51. h5 {[%emt 0:02:21]} Kb4 {[%emt 0:04:14]} 52. Nh6 {[%emt 0:00:39]} b5 {[%emt 0:01:16]} 53. Nf7 {[%emt 0:00:36]} Bf6 {[%emt 0:01:56]} 54. Nd6 {[%emt 0:07:33]} Be5 {[%emt 0:01:24]} 55. Nf7 {[%emt 0:04:31]} Bf6 {[%emt 0:00:12]} 56. Nd6 {[%emt 0:02:11]} Be5 {[%emt 0:00:06]} 57. Ne4 {[%emt 0:01:47]} Ka3 {[%emt 0:05:15]} 58. Nc5 {[%emt 0:00:09]} Kxa2 {[%emt 0:00:45]} 59. Nxe6 {[%emt 0:00:08]} b4 {[%emt 0:03:33]} 60. Nc5 {[%emt 0:00:09]} b3 {[%emt 0:04:03]} 61. Nd3 {[%emt 0:00:33]} b2 {[%emt 0:02:24]} 62. Nxb2 {[%emt 0:00:07]} Bxb2 {[%emt 0:01:11]} 63. Kf3 {[%emt 0:00:15]} Kb3 {[%emt 0:00:06]} 64. Ke4 {[%emt 0:01:03]} Kc4 {[%emt 0:00:06]} 65. f4 {[%emt 0:00:13]} Kc5 {[%emt 0:00:12]} 66. Kf5 {[%emt 0:00:20]} Kd6 {[%emt 0:00:06]} 67. Kg6 {[%emt 0:00:11]} Ke7 {[%emt 0:00:12]} 68. h6 {[%emt 0:00:16]} Kf8 {[%emt 0:00:44]} 69. h7 {[%emt 0:00:11]} Ke7 {[%emt 0:00:05]} 70. f5 {[%emt 0:00:08]} Bf6 {[%emt 0:00:21]} 71. h8=Q {[%emt 0:00:45]} Bxh8 {[%emt 0:00:06]} 72. f6+ {[%emt 0:00:00]} Bxf6 {[%emt 0:00:03]} 1/2-1/2

[Event "72nd RUS-ch Higher League 2019"]
[Site "Yaroslavl"]
[Date "2019.07.04"]
[Round "7.16"]
[White "Khanin, Semen"]
[Black "Paravyan, David"]
[Result "0-1"]
[ECO "B90"]
[WhiteElo "2529"]
[BlackElo "2605"]
[Annotator "ChessBase"]
[PlyCount "106"]
[EventDate "2019.06.27"]
[EventType "swiss"]
[EventCountry "RUS"]
[SourceTitle "playchess.com"]
[Source "ChessBase"]
[SourceQuality "1"]
[TimeControl "40/5400+30:1800+30"]

1. e4 {[%emt 0:00:00]} c5 {[%emt 0:00:00]} 2. Nf3 {[%emt 0:00:00]} d6 {[%emt 0:00:00]} 3. d4 {[%emt 0:00:05]} cxd4 {[%emt 0:00:04]} 4. Nxd4 {[%emt 0:00:03]} Nf6 {[%emt 0:00:06]} 5. Nc3 {[%emt 0:00:05]} a6 {[%emt 0:00:03]} 6. f3 {[%emt 0:00:10]} e5 {[%emt 0:00:04]} 7. Nb3 {[%emt 0:00:04]} Be6 {[%emt 0:00:04]} 8. Be3 {[%emt 0:00:08]} Be7 {[%emt 0:00:04]} 9. Qd2 {[%emt 0:00:15]} h5 {[%emt 0:00:06]} 10. O-O-O {[%emt 0:06:51]} Nbd7 {[%emt 0:00:04]} 11. Kb1 {[%emt 0:00:48]} Rc8 {[%emt 0:00:15]} 12. h4 {[%emt 0:00:46]} b5 {[%emt 0:01:10]} 13. a3 {[%emt 0:00:05]} O-O {[%emt 0:10:30]} 14. Bg5 {[%emt 0:00:04]} Nb6 {[%emt 0:00:13]} 15. Bxf6 {[%emt 0:06:58]} Bxf6 {[%emt 0:00:19]} 16. Qxd6 {[%emt 0:01:37]} Be7 {[%emt 0:05:35]} 17. Qxd8 {[%emt 0:07:56]} Rfxd8 {[%emt 0:00:15]} 18. Rxd8+ {[%emt 0:06:01]} Rxd8 {[%emt 0:00:41]} 19. Be2 {[%emt 0:00:46]} g6 {[%emt 0:05:59]} 20. g4 {[%emt 0:13:08]} Kg7 {[%emt 0:27:48]} 21. gxh5 {[%emt 0:02:58]} gxh5 {[%emt 0:00:05]} 22. f4 {[%emt 0:05:45]} exf4 {[%emt 0:01:01]} 23. Bxh5 {[%emt 0:00:16]} Rh8 {[%emt 0:02:26]} 24. Bf3 {[%emt 0:02:07]} Rxh4 {[%emt 0:03:20]} 25. Rxh4 {[%emt 0:04:31]} Bxh4 {[%emt 0:00:12]} 26. Ne2 {[%emt 0:19:52]} Bg3 {[%emt 0:06:58]} 27. Nc5 {[%emt 0:04:56]} Nc4 {[%emt 0:02:07]} 28. Kc1 {[%emt 0:01:11]} Ne5 {[%emt 0:12:13]} 29. Nxe6+ {[%emt 0:00:21]} fxe6 {[%emt 0:00:04]} 30. Bh1 {[%emt 0:00:24]} Bf2 {[%emt 0:00:32]} 31. Kd1 {[%emt 0:09:01]} Be3 {[%emt 0:00:46]} 32. Nc3 {[%emt 0:02:47]} Kf6 {[%emt 0:16:09]} 33. Ke2 {[%emt 0:01:44]} Bc1 {[%emt 0:00:04]} 34. Nd1 {[%emt 0:00:07]} Kg5 {[%emt 0:00:04]} 35. Bf3 {[%emt 0:01:54]} Nc4 {[%emt 0:07:34]} 36. b3 {[%emt 0:01:31]} Nxa3 {[%emt 0:00:33]} 37. Kd3 {[%emt 0:00:46]} Kh4 {[%emt 0:00:13]} 38. e5 {[%emt 0:00:39]} Kg3 {[%emt 0:00:11]} 39. Bb7 {[%emt 0:00:31]} a5 {[%emt 0:01:05]} 40. Bc8 {[%emt 0:00:00]} f3 {[%emt 0:00:00]} 41. Bxe6 {[%emt 0:05:51]} Bf4 {[%emt 0:10:53]} 42. Bd5 {[%emt 0:09:24]} Bxe5 {[%emt 0:01:28]} 43. Ne3 {[%emt 0:00:39]} b4 {[%emt 0:14:04]} 44. Ke4 {[%emt 0:04:39]} Bf4 {[%emt 0:00:20]} 45. Nf1+ {[%emt 0:01:51]} Kf2 {[%emt 0:00:38]} 46. Kxf4 {[%emt 0:01:26]} Kxf1 {[%emt 0:00:03]} 47. Bxf3 {[%emt 0:04:06]} Nxc2 {[%emt 0:00:09]} 48. Ke4 {[%emt 0:00:53]} Na1 {[%emt 0:01:34]} 49. Kd3 {[%emt 0:03:31]} Nxb3 {[%emt 0:00:05]} 50. Bd1 {[%emt 0:02:16]} Nc1+ {[%emt 0:02:43]} 51. Kc4 {[%emt 0:00:26]} Ke1 {[%emt 0:00:09]} 52. Ba4 {[%emt 0:01:10]} Kd2 {[%emt 0:00:28]} 53. Kb5 {[%emt 0:00:06]} b3 {[%emt 0:00:14]} 0-1

[Event "72nd RUS-ch Higher League 2019"]
[Site "Yaroslavl"]
[Date "2019.07.04"]
[Round "7.17"]
[White "Rozum, Ivan"]
[Black "Kardashevskiy, Evgeny"]
[Result "1-0"]
[ECO "A13"]
[WhiteElo "2572"]
[BlackElo "2429"]
[Annotator "ChessBase"]
[PlyCount "183"]
[EventDate "2019.06.27"]
[EventType "swiss"]
[EventCountry "RUS"]
[SourceTitle "playchess.com"]
[Source "ChessBase"]
[SourceQuality "1"]
[TimeControl "40/5400+30:1800+30"]

1. c4 {[%emt 0:03:36]} e6 {[%emt 0:00:00]} 2. Nf3 {[%emt 0:00:24]} Nf6 {[%emt 0:00:09]} 3. b3 {[%emt 0:00:46]} d5 {[%emt 0:00:29]} 4. Bb2 {[%emt 0:00:05]} Be7 {[%emt 0:01:00]} 5. g3 {[%emt 0:00:21]} O-O {[%emt 0:01:00]} 6. Bg2 {[%emt 0:00:03]} c5 {[%emt 0:01:29]} 7. cxd5 {[%emt 0:00:48]} Nxd5 {[%emt 0:00:21]} 8. O-O {[%emt 0:00:39]} Nc6 {[%emt 0:00:25]} 9. d4 {[%emt 0:03:39]} cxd4 {[%emt 0:00:57]} 10. Nxd4 {[%emt 0:00:10]} Bd7 {[%emt 0:01:13]} 11. Na3 {[%emt 0:07:14]} Nxd4 {[%emt 0:03:05]} 12. Qxd4 {[%emt 0:00:05]} Bf6 {[%emt 0:00:20]} 13. Qd2 {[%emt 0:00:05]} Bc6 {[%emt 0:00:22]} 14. Nc4 {[%emt 0:00:44]} Bxb2 {[%emt 0:04:10]} 15. Qxb2 {[%emt 0:00:04]} Nb4 {[%emt 0:04:17]} 16. Rfd1 {[%emt 0:01:27]} Qe7 {[%emt 0:01:44]} 17. e4 {[%emt 0:02:55]} Rfd8 {[%emt 0:07:39]} 18. a3 {[%emt 0:02:47]} Nd3 {[%emt 0:04:16]} 19. Qe2 {[%emt 0:01:26]} Nc5 {[%emt 0:01:19]} 20. Na5 {[%emt 0:01:16]} Be8 {[%emt 0:18:51]} 21. e5 {[%emt 0:03:13]} Rac8 {[%emt 0:09:43]} 22. b4 {[%emt 0:04:16]} Na4 {[%emt 0:04:48]} 23. Rxd8 {[%emt 0:02:04]} Qxd8 {[%emt 0:00:42]} 24. Nxb7 {[%emt 0:02:02]} Qd4 {[%emt 0:01:40]} 25. Re1 {[%emt 0:03:40]} Nc3 {[%emt 0:07:41]} 26. Qe3 {[%emt 0:04:49]} Qxe3 {[%emt 0:00:22]} 27. Rxe3 {[%emt 0:06:43]} Bb5 {[%emt 0:02:30]} 28. Bf1 {[%emt 0:08:56]} Bxf1 {[%emt 0:01:39]} 29. Kxf1 {[%emt 0:00:04]} Nd5 {[%emt 0:00:23]} 30. Rf3 {[%emt 0:01:28]} Rc1+ {[%emt 0:02:03]} 31. Kg2 {[%emt 0:00:43]} Rc2 {[%emt 0:03:51]} 32. Nd8 {[%emt 0:04:13]} Rc7 {[%emt 0:00:28]} 33. b5 {[%emt 0:00:26]} g5 {[%emt 0:00:57]} 34. a4 {[%emt 0:01:56]} g4 {[%emt 0:02:51]} 35. Rb3 {[%emt 0:00:33]} Rc3 {[%emt 0:10:59]} 36. Rxc3 {[%emt 0:01:49]} Nxc3 {[%emt 0:00:05]} 37. Nc6 {[%emt 0:00:06]} Nxa4 {[%emt 0:00:15]} 38. Nxa7 {[%emt 0:00:14]} Nb6 {[%emt 0:00:20]} 39. h3 h5 {[%emt 0:00:41]} 40. hxg4 {[%emt 0:00:00]} hxg4 {[%emt 0:00:00]} 41. Kf1 {[%emt 0:04:53]} Kg7 {[%emt 0:02:23]} 42. Ke2 {[%emt 0:01:11]} f6 {[%emt 0:05:40]} 43. Nc6 {[%emt 0:01:50]} Nd7 {[%emt 0:01:56]} 44. exf6+ {[%emt 0:03:53]} Kxf6 {[%emt 0:00:09]} 45. Kd3 {[%emt 0:00:35]} Kf5 {[%emt 0:07:25]} 46. Kd4 {[%emt 0:11:22]} e5+ {[%emt 0:01:56]} 47. Ke3 {[%emt 0:02:12]} Ke6 {[%emt 0:01:56]} 48. Nb4 {[%emt 0:00:02]} Kd6 {[%emt 0:02:43]} 49. Ke4 {[%emt 0:02:44]} Ke6 {[%emt 0:00:21]} 50. Na2 {[%emt 0:12:33]} Nc5+ {[%emt 0:01:01]} 51. Ke3 {[%emt 0:00:02]} Na4 {[%emt 0:01:23]} 52. Kd2 {[%emt 0:03:05]} Kd6 {[%emt 0:03:39]} 53. Nc3 {[%emt 0:01:13]} Nb6 {[%emt 0:00:17]} 54. Kd3 {[%emt 0:01:39]} Ke6 {[%emt 0:00:14]} 55. Nd1 {[%emt 0:00:58]} Nd7 {[%emt 0:02:53]} 56. Ne3 {[%emt 0:00:08]} Nf6 {[%emt 0:00:40]} 57. Kc4 {[%emt 0:04:43]} Kd6 {[%emt 0:00:29]} 58. Kb4 {[%emt 0:00:37]} Kc7 {[%emt 0:01:15]} 59. Ka5 {[%emt 0:00:35]} Kb7 {[%emt 0:00:17]} 60. b6 {[%emt 0:00:19]} Kc6 {[%emt 0:02:32]} 61. Ka6 {[%emt 0:06:11]} Nd7 {[%emt 0:00:14]} 62. Nxg4 {[%emt 0:01:01]} Nxb6 {[%emt 0:00:15]} 63. Nxe5+ {[%emt 0:00:05]} Kc5 {[%emt 0:00:19]} 64. Nd3+ {[%emt 0:01:22]} Kc6 {[%emt 0:00:06]} 65. Ka5 {[%emt 0:00:40]} Nd7 {[%emt 0:01:02]} 66. Kb4 {[%emt 0:00:24]} Kd5 {[%emt 0:00:34]} 67. Kc3 {[%emt 0:00:07]} Ke4 {[%emt 0:00:05]} 68. Ne1 {[%emt 0:01:24]} Kf5 {[%emt 0:01:51]} 69. Kd2 {[%emt 0:02:31]} Kg4 {[%emt 0:00:30]} 70. Ke2 {[%emt 0:00:15]} Ne5 {[%emt 0:02:05]} 71. Nd3 {[%emt 0:01:04]} Nc4 {[%emt 0:00:49]} 72. Kf1 {[%emt 0:00:34]} Kh3 {[%emt 0:00:28]} 73. Kg1 {[%emt 0:00:18]} Ne5 {[%emt 0:00:33]} 74. Nf4+ {[%emt 0:00:36]} Kg4 {[%emt 0:00:04]} 75. Kg2 {[%emt 0:00:03]} Nf3 {[%emt 0:00:17]} 76. Nd3 {[%emt 0:00:06]} Ng5 {[%emt 0:00:12]} 77. f3+ {[%emt 0:00:13]} Kf5 {[%emt 0:00:20]} 78. g4+ {[%emt 0:00:06]} Kf6 {[%emt 0:00:06]} 79. Kg3 {[%emt 0:00:35]} Kg6 {[%emt 0:00:09]} 80. Nc5 {[%emt 0:00:22]} Kh6 {[%emt 0:00:15]} 81. f4 {[%emt 0:00:07]} Nf7 {[%emt 0:00:05]} 82. Ne4 {[%emt 0:00:07]} Kg6 {[%emt 0:00:06]} 83. f5+ {[%emt 0:00:07]} Kh6 {[%emt 0:00:07]} 84. Kf4 {[%emt 0:00:18]} Nd8 {[%emt 0:00:13]} 85. g5+ {[%emt 0:00:08]} Kg7 {[%emt 0:00:06]} 86. Kg4 {[%emt 0:01:07]} Nc6 {[%emt 0:00:25]} 87. Kh5 {[%emt 0:00:11]} Nd4 {[%emt 0:00:12]} 88. f6+ {[%emt 0:00:13]} Kf7 {[%emt 0:00:06]} 89. g6+ {[%emt 0:00:13]} Ke6 {[%emt 0:00:16]} 90. g7 {[%emt 0:00:15]} Kf7 {[%emt 0:00:07]} 91. Ng5+ {[%emt 0:00:09]} Kg8 {[%emt 0:00:10]} 92. Kg6 {[%emt 0:00:05]} 1-0

[Event "72nd RUS-ch Higher League 2019"]
[Site "Yaroslavl"]
[Date "2019.07.04"]
[Round "7.18"]
[White "Nesterov, Arseniy"]
[Black "Bocharov, Ivan"]
[Result "1/2-1/2"]
[ECO "D30"]
[WhiteElo "2423"]
[BlackElo "2559"]
[Annotator "ChessBase"]
[PlyCount "81"]
[EventDate "2019.06.27"]
[EventType "swiss"]
[EventCountry "RUS"]
[SourceTitle "playchess.com"]
[Source "ChessBase"]
[SourceQuality "1"]
[TimeControl "40/5400+30:1800+30"]

1. d4 {[%emt 0:00:00]} d5 {[%emt 0:00:00]} 2. c4 {[%emt 0:00:00]} e6 {[%emt 0:00:00]} 3. Nf3 {[%emt 0:00:00]} Nf6 {[%emt 0:00:00]} 4. g3 {[%emt 0:00:28]} Bb4+ {[%emt 0:00:03]} 5. Bd2 {[%emt 0:00:07]} Be7 {[%emt 0:00:05]} 6. Bg2 {[%emt 0:00:29]} O-O {[%emt 0:00:05]} 7. O-O {[%emt 0:01:34]} Nbd7 {[%emt 0:00:11]} 8. Qc2 {[%emt 0:00:13]} c6 {[%emt 0:00:12]} 9. Bf4 {[%emt 0:02:04]} b6 {[%emt 0:00:49]} 10. Rd1 {[%emt 0:01:46]} Ba6 {[%emt 0:00:32]} 11. cxd5 {[%emt 0:08:06]} cxd5 {[%emt 0:00:15]} 12. Ne5 {[%emt 0:00:13]} Nxe5 {[%emt 0:08:09]} 13. dxe5 {[%emt 0:00:06]} Ng4 {[%emt 0:00:28]} 14. h3 {[%emt 0:05:49]} Rc8 {[%emt 0:01:12]} 15. Qd2 {[%emt 0:16:40]} Nh6 {[%emt 0:02:25]} 16. Bxh6 {[%emt 0:00:45]} gxh6 {[%emt 0:00:03]} 17. Nc3 {[%emt 0:09:04]} Qc7 {[%emt 0:02:26]} 18. Qf4 {[%emt 0:04:01]} Bg5 {[%emt 0:04:51]} 19. Qa4 {[%emt 0:04:35]} Bc4 {[%emt 0:10:47]} 20. h4 {[%emt 0:02:06]} Be7 {[%emt 0:01:22]} 21. b3 {[%emt 0:04:33]} Qxe5 {[%emt 0:09:53]} 22. bxc4 {[%emt 0:00:55]} Rxc4 {[%emt 0:00:10]} 23. Qxa7 {[%emt 0:00:09]} Rc7 {[%emt 0:00:41]} 24. Qxb6 {[%emt 0:00:31]} Rxc3 {[%emt 0:00:06]} 25. Qd4 {[%emt 0:05:22]} Qxd4 {[%emt 0:01:24]} 26. Rxd4 {[%emt 0:00:13]} Rb8 {[%emt 0:07:59]} 27. a4 {[%emt 0:02:38]} Bc5 28. Rg4+ {[%emt 0:11:27]} Kf8 {[%emt 0:00:38]} 29. a5 Rb2 {[%emt 0:07:44]} 30. a6 {[%emt 0:06:05]} Ba7 {[%emt 0:00:01]} 31. e3 {[%emt 0:01:19]} Rcc2 {[%emt 0:09:05]} 32. Rf4 {[%emt 0:02:18]} Ke7 33. Ra3 Rc1+ {[%emt 0:15:01]} 34. Kh2 {[%emt 0:00:37]} f5 {[%emt 0:03:42]} 35. h5 {[%emt 0:03:41]} Kd6 {[%emt 0:01:01]} 36. Bh3 {[%emt 0:00:50]} Re1 {[%emt 0:04:23]} 37. Bg2 {[%emt 0:00:57]} Rc1 {[%emt 0:00:15]} 38. Bh3 {[%emt 0:00:09]} Rc4 {[%emt 0:04:58]} 39. Kg1 {[%emt 0:01:48]} Rc1+ {[%emt 0:01:49]} 40. Kh2 {[%emt 0:00:00]} Re1 {[%emt 0:00:00]} 41. Bg2 {[%emt 0:01:04]} 1/2-1/2